Workbook

Sheet List1
A3: Obec , IČ: Náklo, 00299251
A5: Rozpočtové opatření č. 2 - březen 2022
A7: V souladu s ustanovením § 16 zákona č. 250/2000 Sb., o rozpočtových pravidlech územních rozpočtů dojde k rozpočtovému
A8: opatření v případě změn rozpočtových prostředků na závazných ukazatelích.
A10: Rozpočtové opatření č. 2/2022 (předloženo na ZO 10. 3. 2022) a doplněno při jednání na ZO
A12: PŘÍJMY
A13: PAR | B13: POL | C13: UZ | D13: PARAGRAF | E13: popis | F13: Rozpočet na rok 2022 | G13: Rozpočet po změnách | H13: změna ROZP | I13: ROZP po ZMĚNĚ | J13: POZNÁMKA
A14: 0 | B14: 1334 | E14: Př. Z odvodů za odněží půdy ze zem.půd.fondu dle z. | F14: 450000 | G14: =F14 -> 450000 | H14: 158448.83 | I14: =H14+G14 -> 608448.83
A15: 0 | B15: 4116 | E15: Ostatní neinvestiční přijaté transfery za SR | F15: 0 | G15: =F15 -> 0 | H15: 844745.69 | I15: =H15+G15 -> 844745.69 | J15: Dotace ZŠ Náklo - modernizace cvičné kuchyňky
A16: 6171 | B16: 2111 | E16: Př.z posk.služeb, výrobků, prací, výkonů a práv | F16: 1000 | G16: 0 | H16: 100000 | I16: 101000 | J16: prodej knih
A17: 6171 | D17: Činnost místní samosprávy | F17: 76000 | H17: =H16 -> 100000 | I17: =H17+F17 -> 176000
D18: Celkem ZMĚNY v PŘÍJMECH | F18: 33700619.7 | H18: =H14+H15+H17 -> 1103194.52 | I18: =F18+H18 -> 34803814.22
D20: Celkem PŘÍJMY | F20: =F18 -> 33700619.7 | H20: =H18 -> 1103194.52 | I20: =F20+H20 -> 34803814.22
A22: VÝDAJE:
A23: PAR | B23: POL | C23: UZ | D23: PARAGRAF | E23: popis | F23: Rozpočet na rok 2022 | G23: Rozpočet po změnách | H23: změna ROZP | I23: ROZP po ZMĚNĚ | J23: POZNÁMKA
A24: 6171 | B24: 5169 | E24: Nákup ostatních služeb | F24: =[1]List1!$F$27 -> 1500000 | G24: =[1]List1!$H$27 -> 1251897.04 | H24: =-[1]List1!$G$27 -> 248102.96 | I24: =H24+G24 -> 1500000
A25: 6171 | B25: 5171 | E25: Opravy a udržování | F25: 150000 | G25: =F25 -> 150000 | H25: 1350000 | I25: =H25+G25 -> 1500000 | J25: Rekonstrukce obecního úřadu
A26: 6171 | B26: 5321 | E26: Neinvestiční transfery obcím | F26: 60000 | G26: 60000 | H26: 15000 | I26: =H26+G26 -> 75000 | J26: navýšení Městská policie Štěpánov
A27: 6171 | B27: 5622 | E27: Neinvestiční půjčené prostředky spolkům | F27: 275999 | G27: 0 | H27: =192555+213555 -> 406110 | I27: =H27+G27 -> 406110 | J27: Návratní finanční výpomoc SDH Lhota nad Moravou a Housátko
A28: 6171 | B28: 6121 | E28: Budovy, haly a stavby | F28: 0 | G28: 0 | H28: 2000000 | I28: =H28 -> 2000000 | J28: Ordinace dětské lékařky
A29: 6171 | D29: Činnost místní samosprávy | F29: 5427999 | H29: =SUM(H24:H26)+H28+H27 -> 4019212.96 | I29: =H29+F29 -> 9447211.96
A30: 3113 | B30: 5336 | E30: Neinvestiční transfery zřízeným příspěvkovým organizacím | F30: 0 | G30: 0 | H30: 844745.69 | I30: =H30 -> 844745.69 | J30: Dotace ZŠ Náklo - modernizace cvičné kuchyňky
A31: 3113 | D31: Základní školy | H31: =H30 -> 844745.69 | I31: =I30 -> 844745.69
A32: 3631 | B32: 6121 | E32: Budovy, haly a stavby | F32: 20000 | G32: =[1]List1!$H$46 -> 30000 | H32: 70000 | I32: =H32+G32 -> 100000 | J32: nové lampy
A33: 3631 | D33: Veřejné osvětlení | F33: 300000 | H33: =H32 -> 70000 | I33: =H33+F33 -> 370000
A34: 3639 | B34: 5331 | E34: neinvestiční příspěvky zřízeným příspěvkovým organizacím | F34: 5500000 | G34: =F34 -> 5500000 | H34: -188539.76 | I34: =H34+G34 -> 5311460.24 | J34: příspěvek na dotaci Sběrný dvůr - investiční část
A35: 3639 | B35: 6351 | E35: Invest. transf. zřízeným příspěvkovým organizacím | F35: 0 | G35: 0 | H35: 188539.76 | I35: =H35 -> 188539.76 | J35: příspěvek na dotaci Sběrný dvůr - investiční část
A36: 3639 | B36: 6130 | E36: Pozemky | F36: 54935.7 | G36: 59384 | H36: 1462145.34 | I36: =H36+G36 -> 1521529.34 | J36: výkup pozemků projekt Nad Strání
A37: 3639 | D37: Komunální služby a územní rozvoj j.n | F37: 7667935.7 | G37: =[2]List1!$H$31 -> 7692501.9 | H37: =SUM(H34:H36) -> 1462145.34 | I37: =H37+G37 -> 9154647.24
A38: 3612 | B38: 6121 | E38: Budovy, haly a stavby | F38: 0 | G38: =[1]List1!$H$41 -> 42882.4 | H38: 1500000 | I38: =H38+G38 -> 1542882.4 | J38: Rekonstrukce bytového domu Lhota č. 39
A39: 3612 | D39: Bytové hospodářství | F39: 210000 | H39: =H38 -> 1500000 | I39: =H39+F39 -> 1710000
D40: Celkem ZMĚNY ve VÝDAJÍCH | F40: 33700619.7 | H40: =H39+H37+H33+H29+H31 -> 7896103.99 | I40: =H40+F40 -> 41596723.69
D42: Celkem VÝDAJE | G42: =F40 -> 33700619.7 | H42: =H40 -> 7896103.99 | I42: =I40 -> 41596723.69
D44: Celkem 5XXX
D45: Celkem 6XXX
A48: FINANCOVÁNÍ
A49: PAR | B49: POL | C49: UZ | D49: PARAGRAF | E49: popis | F49: Rozpočet na rok 2022 | G49: Rozpočet po změnách | H49: změna ROZP | I49: ROZP po ZMĚNĚ | J49: POZNÁMKA
B50: 8115 | E50: Změny stavů krátkodobých prostředků na bank.účtech | F50: 0 | H50: 6792909.47 | I50: =H50+F50 -> 6792909.47 | J50: stav na účtech k 31.12.2021
D52: Celkem ZMĚNY ve FINANCOVÁNÍ: | I52: =I50 -> 6792909.47
D55: REKAPITULACE:
D57: Celkem PŘÍJMY | G57: =F18 -> 33700619.7 | H57: =H18 -> 1103194.52 | I57: =H57+G57 -> 34803814.22
D58: Celkem FINANCOVÁNÍ: | G58: 0 | H58: =I52 -> 6792909.47 | I58: =H58+G58 -> 6792909.47
D59: Celkem PŘÍJMY+FINANCOVÁNÍ | G59: =SUM(G57:G58) -> 33700619.7 | I59: =I58+I57 -> 41596723.69
D61: Celkem VÝDAJE | G61: =F40 -> 33700619.7 | I61: =I42 -> 41596723.69
A64: Důvodová zpráva k rozpočtovému opatření č. 2 /2022
A66: Přesun prostředků v rámci nezajištěného výdaje je Čerpán z rezervy obce.
A68: Správce rozpočtu :
A70: Starosta obce :
A72: ZO schvaluje dne 10. 3. 2022 rozpočtové opatření č. 2/2022 v předloženém rozsahu.

Sheet List2
A1: TEXTY PRO FORMULÁŘ ÚPRAVA ROZPOČTU - na začátek kopírují se řádky 3-13
A2: poznámka: Texty, které budou přenášeny z tohoto formuláře, musí být zapsány pouze ve sloupci A
A5: Obec , IČ: Náklo, 00299251
A7: Rozpočtové změny roku 2019 -duben
A9: V souladu s ustanovením § 16 zákona č. 250/2000 Sb., o rozpočtových pravidlech územních rozpočtů dojde k rozpočtovému
A10: opatření v případě změn rozpočtových prostředků na závazných ukazatelích.
A12: Rozpočtové opatření č. 1/2019 (předloženo na ZQ 6. 6. 2018) a doplněno při jednání na ZO
A14: TEXTY PRO FORMULÁŘ ÚPRAVA ROZPOČTU - na začátek kopírují se řádky 16-32
A16: Důvodová zpráva k rozpočtovému opatření č. 1/2019
A18: Přesun prostředků v rámci nezajištěného výdaje je Čerpán z rezervy obce.
A20: Správce rozpočtu :
A22: Starosta obce :
A24: ZO schvaluje dne 6. 6. 2018 rozpočtové opatření č. 3/2018 v předloženém rozsahu Usnesením č. 1038/1860

Sheet List3
